[Event "Snabbschacks-SM 2025"]
[Site "Norrköping, Sweden"]
[Date "2025.09.28"]
[Round "8.2"]
[White "Wernberg, Hugo"]
[Black "Carlsson, Ludvig"]
[Result "0-1"]
[TimeControl "25 min + 10 sec/move"]
[WhiteTitle "FM"]
[BlackTitle "IM"]
[WhiteElo "2285"]
[BlackElo "2389"]

1. d4 {[%clk 00:25:18]} {[%emt 00:00:02]} Nf6 {[%clk 00:24:43]} {[%emt
00:00:37]} 2. Nf3 {[%clk 00:25:23]} {[%emt 00:00:05]} d5 {[%clk 00:24:22]}
{[%emt 00:00:31]} 3. e3 {[%clk 00:25:28]} {[%emt 00:00:05]} c6 {[%clk
00:24:08]} {[%emt 00:00:24]} 4. Bd3 {[%clk 00:25:35]} {[%emt 00:00:04]} Bg4
{[%clk 00:24:08]} {[%emt 00:00:09]} 5. Nbd2 {[%clk 00:25:36]} {[%emt 00:00:10]}
Nbd7 {[%clk 00:24:12]} {[%emt 00:00:05]} 6. h3 {[%clk 00:25:42]} {[%emt
00:00:04]} Bh5 {[%clk 00:24:07]} {[%emt 00:00:15]} 7. O-O {[%clk 00:25:49]}
{[%emt 00:00:03]} e6 {[%clk 00:23:08]} {[%emt 00:01:09]} 8. c4 {[%clk
00:25:47]} {[%emt 00:00:12]} Bd6 {[%clk 00:21:57]} {[%emt 00:01:20]} 9. e4
{[%clk 00:24:36]} {[%emt 00:01:21]} dxe4 {[%clk 00:21:38]} {[%emt 00:00:29]} 10.
Nxe4 {[%clk 00:24:42]} {[%emt 00:00:05]} Nxe4 {[%clk 00:21:38]} {[%emt
00:00:10]} 11. Bxe4 {[%clk 00:24:50]} {[%emt 00:00:03]} Nf6 {[%clk 00:21:45]}
{[%emt 00:00:02]} 12. Qe2 {[%clk 00:24:13]} {[%emt 00:00:48]} Nxe4 {[%clk
00:19:26]} {[%emt 00:02:28]} 13. Qxe4 {[%clk 00:24:21]} {[%emt 00:00:02]} O-O
{[%clk 00:19:28]} {[%emt 00:00:07]} 14. b3 {[%clk 00:23:34]} {[%emt 00:00:58]}
a5 {[%clk 00:16:23]} {[%emt 00:03:15]} 15. a3 {[%clk 00:21:03]} {[%emt
00:02:41]} Bg6 {[%clk 00:15:28]} {[%emt 00:01:04]} 16. Qe3 {[%clk 00:21:11]}
{[%emt 00:00:04]} a4 {[%clk 00:14:34]} {[%emt 00:01:03]} 17. b4 {[%clk
00:20:42]} {[%emt 00:00:39]} b5 {[%clk 00:14:41]} {[%emt 00:00:03]} 18. cxb5
{[%clk 00:19:20]} {[%emt 00:01:33]} cxb5 {[%clk 00:14:45]} {[%emt 00:00:05]} 19.
Bb2 {[%clk 00:18:06]} {[%emt 00:01:24]} Rc8 {[%clk 00:14:48]} {[%emt 00:00:07]}
20. Rac1 {[%clk 00:18:05]} {[%emt 00:00:12]} Qd7 {[%clk 00:14:44]} {[%emt
00:00:13]} 21. Ne5 {[%clk 00:14:03]} {[%emt 00:04:13]} Qb7 {[%clk 00:14:50]}
{[%emt 00:00:03]} 22. Rxc8 {[%clk 00:13:38]} {[%emt 00:00:35]} Rxc8 {[%clk
00:14:57]} {[%emt 00:00:03]} 23. Rc1 {[%clk 00:13:47]} {[%emt 00:00:02]} Rc7
{[%clk 00:14:02]} {[%emt 00:01:04]} 24. Rxc7 {[%clk 00:13:12]} {[%emt
00:00:45]} Qxc7 {[%clk 00:14:10]} {[%emt 00:00:02]} 25. d5 {[%clk 00:11:20]}
{[%emt 00:02:03]} exd5 {[%clk 00:13:25]} {[%emt 00:00:54]} 26. Nxg6 {[%clk
00:10:53]} {[%emt 00:00:37]} hxg6 {[%clk 00:13:33]} {[%emt 00:00:02]} 27. Qd4
{[%clk 00:10:00]} {[%emt 00:01:03]} Bf8 {[%clk 00:13:40]} {[%emt 00:00:03]} 28.
Qxd5 {[%clk 00:09:57]} {[%emt 00:00:13]} Qc2 {[%clk 00:13:42]} {[%emt
00:00:08]} 29. Qd4 {[%clk 00:09:05]} {[%emt 00:01:03]} f6 {[%clk 00:13:01]}
{[%emt 00:00:51]} 30. Kh2 {[%clk 00:06:43]} {[%emt 00:02:32]} Qb3 {[%clk
00:12:31]} {[%emt 00:00:39]} 31. Bc1 {[%clk 00:05:40]} {[%emt 00:01:13]} Qe6
{[%clk 00:12:38]} {[%emt 00:00:02]} 32. Bf4 {[%clk 00:05:25]} {[%emt 00:00:26]}
g5 {[%clk 00:12:38]} {[%emt 00:00:10]} 33. Bg3 {[%clk 00:05:00]} {[%emt
00:00:35]} Qc6 {[%clk 00:11:52]} {[%emt 00:00:56]} 34. Qd3 {[%clk 00:04:48]}
{[%emt 00:00:23]} Kf7 {[%clk 00:11:59]} {[%emt 00:00:03]} 35. f3 {[%clk
00:04:28]} {[%emt 00:00:29]} Be7 {[%clk 00:12:07]} {[%emt 00:00:03]} 36. Qh7
{[%clk 00:03:56]} {[%emt 00:00:41]} Bd8 {[%clk 00:08:12]} {[%emt 00:04:05]} 37.
Qh5+ {[%clk 00:04:00]} {[%emt 00:00:06]} Kg8 {[%clk 00:08:20]} {[%emt
00:00:02]} 38. Qg6 {[%clk 00:03:51]} {[%emt 00:00:19]} Bb6 {[%clk 00:08:15]}
{[%emt 00:00:15]} 39. h4 {[%clk 00:02:48]} {[%emt 00:01:13]} gxh4 {[%clk
00:08:08]} {[%emt 00:00:17]} 40. Bxh4 {[%clk 00:02:56]} {[%emt 00:00:02]} Bd4
{[%clk 00:08:01]} {[%emt 00:00:17]} 41. Qd3 {[%clk 00:02:05]} {[%emt 00:01:02]}
Qc4 {[%clk 00:07:40]} {[%emt 00:00:30]} 42. Qg6 {[%clk 00:01:52]} {[%emt
00:00:23]} Kf8 {[%clk 00:06:49]} {[%emt 00:01:01]} 43. Bg3 {[%clk 00:01:58]}
{[%emt 00:00:04]} Qd5 {[%clk 00:06:48]} {[%emt 00:00:12]} 44. Qg4 {[%clk
00:01:31]} {[%emt 00:00:36]} Kf7 {[%clk 00:06:42]} {[%emt 00:00:16]} 45. f4
{[%clk 00:00:55]} {[%emt 00:00:46]} g6 {[%clk 00:05:03]} {[%emt 00:01:50]} 46.
f5 {[%clk 00:01:03]} {[%emt 00:00:02]} gxf5 {[%clk 00:05:11]} {[%emt 00:00:02]}
47. Qh5+ {[%clk 00:01:12]} Kg7 {[%clk 00:05:15]} {[%emt 00:00:06]} 48. Bf4
{[%clk 00:01:16]} {[%emt 00:00:06]} Be5 {[%clk 00:04:35]} {[%emt 00:00:51]} 49.
Qxf5 {[%clk 00:00:57]} {[%emt 00:00:29]} Bxf4+ {[%clk 00:03:38]} {[%emt
00:01:07]} 50. Qxf4 {[%clk 00:01:05]} {[%emt 00:00:01]} f5 {[%clk 00:03:47]}
{[%emt 00:00:02]} 51. Kh3 {[%clk 00:00:23]} {[%emt 00:00:51]} Kg6 {[%clk
00:03:43]} {[%emt 00:00:14]} 52. Qe3 {[%clk 00:00:28]} {[%emt 00:00:05]} Qb3
{[%clk 00:01:56]} {[%emt 00:01:57]} 53. Qg3+ {[%clk 00:00:37]} {[%emt
00:00:01]} Kf6 {[%clk 00:02:04]} {[%emt 00:00:02]} 54. Kh4 {[%clk 00:00:45]}
{[%emt 00:00:02]} Qxg3+ {[%clk 00:02:00]} {[%emt 00:00:14]} 55. Kxg3 {[%clk
00:00:54]} {[%emt 00:00:02]} Ke5 {[%clk 00:02:09]} 56. Kf3 {[%clk 00:00:58]}
{[%emt 00:00:06]} Kd5 {[%clk 00:02:11]} {[%emt 00:00:09]} 57. Kf4 {[%clk
00:01:06]} {[%emt 00:00:02]} Kc4 {[%clk 00:02:18]} {[%emt 00:00:03]} 58. Kxf5
{[%clk 00:01:15]} {[%emt 00:00:02]} Kb3 {[%clk 00:02:27]} 59. g4 {[%clk
00:01:24]} Kxa3 {[%clk 00:02:36]} {[%emt 00:00:02]} 60. g5 {[%clk 00:01:33]}
Kxb4 {[%clk 00:02:43]} {[%emt 00:00:04]} 61. g6 {[%clk 00:01:42]} a3 {[%clk
00:02:52]} {[%emt 00:00:02]} 62. g7 {[%clk 00:01:50]} a2 {[%clk 00:03:00]}
{[%emt 00:00:02]} 63. g8=Q {[%clk 00:01:58]} {[%emt 00:00:02]} a1=Q {[%clk
00:03:09]} {[%emt 00:00:02]} 64. Qf8+ {[%clk 00:01:24]} {[%emt 00:00:43]} Kc4
{[%clk 00:03:12]} {[%emt 00:00:07]} 65. Qg8+ {[%clk 00:01:21]} {[%emt
00:00:12]} Kd3 {[%clk 00:02:57]} {[%emt 00:00:26]} 66. Qg3+ {[%clk 00:01:27]}
{[%emt 00:00:05]} Kc2 {[%clk 00:03:04]} {[%emt 00:00:03]} 67. Qh2+ {[%clk
00:01:20]} {[%emt 00:00:16]} Kb3 {[%clk 00:03:08]} {[%emt 00:00:05]} 68. Qe2
{[%clk 00:01:19]} {[%emt 00:00:12]} Qb1+ {[%clk 00:02:59]} {[%emt 00:00:19]} 69.
Kg5 {[%clk 00:00:50]} {[%emt 00:00:39]} Qc1+ {[%clk 00:03:05]} {[%emt
00:00:04]} 70. Kh5 {[%clk 00:00:44]} {[%emt 00:00:15]} Qc5+ {[%clk 00:03:04]}
{[%emt 00:00:12]} 71. Kh6 {[%clk 00:00:37]} {[%emt 00:00:16]} b4 {[%clk
00:03:07]} {[%emt 00:00:09]} 72. Qd1+ {[%clk 00:00:35]} {[%emt 00:00:11]} Kc4
{[%clk 00:03:12]} {[%emt 00:00:06]} 73. Qe2+ {[%clk 00:00:40]} {[%emt
00:00:04]} Kd5 {[%clk 00:03:20]} {[%emt 00:00:02]} 74. Qd3+ {[%clk 00:00:44]}
{[%emt 00:00:06]} Kc6 {[%clk 00:03:29]} {[%emt 00:00:02]} 75. Qa6+ {[%clk
00:00:48]} {[%emt 00:00:05]} Qb6 {[%clk 00:03:36]} {[%emt 00:00:03]} 76. Qc4+
{[%clk 00:00:27]} {[%emt 00:00:31]} Kd7+ {[%clk 00:03:35]} {[%emt 00:00:11]} 77.
Kh7 {[%clk 00:00:27]} {[%emt 00:00:10]} b3 {[%clk 00:03:44]} {[%emt 00:00:02]}
78. Qd5+ {[%clk 00:00:31]} {[%emt 00:00:05]} Kc7 {[%clk 00:03:52]} {[%emt
00:00:02]} 79. Qf7+ {[%clk 00:00:25]} {[%emt 00:00:16]} Kb8 {[%clk 00:03:58]}
{[%emt 00:00:05]} 80. Qe8+ {[%clk 00:00:28]} {[%emt 00:00:05]} Kb7 {[%clk
00:04:00]} {[%emt 00:00:09]} 81. Qe4+ {[%clk 00:00:35]} {[%emt 00:00:03]} Kc8
{[%clk 00:04:05]} {[%emt 00:00:05]} 82. Qf5+ {[%clk 00:00:36]} {[%emt
00:00:09]} Kc7 {[%clk 00:04:01]} {[%emt 00:00:15]} 83. Qf7+ {[%clk 00:00:44]}
{[%emt 00:00:02]} Kc6 {[%clk 00:04:08]} {[%emt 00:00:03]} 84. Qc4+ {[%clk
00:00:46]} {[%emt 00:00:08]} Kd6 {[%clk 00:04:12]} {[%emt 00:00:06]} 85. Qd3+
{[%clk 00:00:52]} {[%emt 00:00:05]} Ke7 {[%clk 00:04:18]} {[%emt 00:00:03]} 86.
Qe4+ {[%clk 00:00:46]} {[%emt 00:00:16]} Qe6 {[%clk 00:04:27]} {[%emt
00:00:02]} 87. Qb4+ {[%clk 00:00:53]} {[%emt 00:00:02]} Kf6 {[%clk 00:04:26]}
{[%emt 00:00:12]} 88. Qd4+ {[%clk 00:00:46]} {[%emt 00:00:16]} Kf7 {[%clk
00:04:21]} {[%emt 00:00:15]} 89. Qf4+ {[%clk 00:00:49]} {[%emt 00:00:07]} Ke7
{[%clk 00:04:27]} {[%emt 00:00:03]} 90. Qb4+ {[%clk 00:00:56]} {[%emt
00:00:05]} Ke8 {[%clk 00:04:35]} {[%emt 00:00:01]} 91. Qb8+ {[%clk 00:00:58]}
{[%emt 00:00:08]} Kf7 {[%clk 00:04:31]} {[%emt 00:00:14]} 92. Qf4+ {[%clk
00:01:06]} {[%emt 00:00:02]} Ke7 {[%clk 00:04:16]} {[%emt 00:00:26]} 93. Qb4+
{[%clk 00:01:12]} {[%emt 00:00:03]} Kf6 {[%clk 00:04:23]} {[%emt 00:00:03]} 94.
Qd4+ {[%clk 00:01:15]} {[%emt 00:00:08]} Kg5 {[%clk 00:04:29]} {[%emt
00:00:03]} 95. Qd2+ {[%clk 00:01:14]} {[%emt 00:00:11]} Kf5 {[%clk 00:04:32]}
{[%emt 00:00:08]} 96. Qd3+ {[%clk 00:01:13]} {[%emt 00:00:11]} Ke5 {[%clk
00:04:37]} {[%emt 00:00:04]} 97. Qe3+ {[%clk 00:01:19]} {[%emt 00:00:05]} Kd6
{[%clk 00:04:45]} {[%emt 00:00:01]} 98. Qb6+ {[%clk 00:01:27]} {[%emt
00:00:03]} Ke7 {[%clk 00:04:52]} {[%emt 00:00:03]} 99. Qb4+ {[%clk 00:01:24]}
{[%emt 00:00:13]} Kf7 {[%clk 00:04:57]} {[%emt 00:00:05]} 100. Qf4+ {[%clk
00:01:25]} {[%emt 00:00:10]} Ke7 {[%clk 00:04:45]} {[%emt 00:00:21]} 101. Qb4+
{[%clk 00:01:33]} {[%emt 00:00:02]} Kf6 {[%clk 00:04:54]} 102. Qc3+ {[%clk
00:01:40]} {[%emt 00:00:04]} Kf7 {[%clk 00:05:00]} {[%emt 00:00:04]} 103. Qf3+
{[%clk 00:01:38]} {[%emt 00:00:11]} Ke7 {[%clk 00:05:08]} {[%emt 00:00:02]} 104.
Qb7+ {[%clk 00:01:43]} {[%emt 00:00:06]} Kf8 {[%clk 00:05:17]} {[%emt
00:00:01]} 105. Qb8+ {[%clk 00:01:40]} {[%emt 00:00:12]} Qe8 {[%clk 00:05:25]}
{[%emt 00:00:02]} 106. Qh2 {[%clk 00:00:11]} {[%emt 00:01:39]} Qf7+ {[%clk
00:05:33]} {[%emt 00:00:02]} 0-1

[Event "Snabbschacks-SM 2025"]
[Site "Norrköping, Sweden"]
[Date "2025.09.28"]
[Round "9.8"]
[White "Bjorklund, Thomas"]
[Black "Eriksson, Kristian"]
[Result "1/2-1/2"]
[TimeControl "25 min + 10 sec/move"]
[WhiteElo "2103"]
[BlackElo "2033"]

1. e4 {[%clk 00:25:19]} {[%emt 00:00:01]} e5 {[%clk 00:25:17]} {[%emt
00:00:03]} 2. Nf3 {[%clk 00:25:27]} {[%emt 00:00:02]} Nc6 {[%clk 00:25:25]}
{[%emt 00:00:02]} 3. Bc4 {[%clk 00:25:36]} Nf6 {[%clk 00:25:31]} {[%emt
00:00:04]} 4. d3 {[%clk 00:25:44]} {[%emt 00:00:02]} a6 {[%clk 00:25:25]}
{[%emt 00:00:15]} 5. a3 {[%clk 00:25:52]} h6 {[%clk 00:25:20]} {[%emt
00:00:18]} 6. h3 {[%clk 00:25:49]} d6 {[%clk 00:25:18]} {[%emt 00:00:24]} 7. c3
{[%clk 00:25:51]} g6 {[%clk 00:24:44]} {[%emt 00:00:52]} 8. Qc2 {[%clk
00:25:55]} Bg7 {[%clk 00:24:43]} {[%emt 00:00:18]} 9. Be3 {[%clk 00:25:57]} O-O
{[%clk 00:24:28]} {[%emt 00:00:31]} 10. Nbd2 {[%clk 00:26:01]} d5 {[%clk
00:23:35]} {[%emt 00:01:11]} 11. Ba2 {[%clk 00:25:49]} Be6 {[%clk 00:22:07]}
{[%emt 00:02:00]} 12. O-O {[%clk 00:24:04]} Qd7 {[%clk 00:21:44]} {[%emt
00:02:28]} 13. Rfe1 {[%clk 00:23:26]} Rfe8 {[%clk 00:20:48]} {[%emt 00:01:53]}
14. Nf1 {[%clk 00:22:29]} Rad8 {[%clk 00:19:58]} {[%emt 00:02:07]} 15. Rad1
{[%clk 00:22:35]} dxe4 {[%emt 00:03:15]} 16. dxe4 {[%clk 00:22:16]} Qc8 {[%clk
00:16:48]} {[%emt 00:00:49]} 17. Bxe6 {[%clk 00:22:09]} {[%emt 00:00:17]} Qxe6
{[%clk 00:16:44]} {[%emt 00:00:13]} 18. Ng3 {[%clk 00:21:52]} {[%emt 00:00:26]}
Kh7 {[%clk 00:14:46]} {[%emt 00:02:09]} 19. Ne2 {[%clk 00:21:30]} {[%emt
00:00:32]} Qc4 {[%clk 00:14:20]} {[%emt 00:00:35]} 20. Nd2 {[%clk 00:21:14]}
{[%emt 00:00:27]} Qe6 {[%clk 00:13:29]} {[%emt 00:01:01]} 21. b3 {[%clk
00:21:06]} {[%emt 00:00:18]} Rd7 {[%clk 00:13:07]} {[%emt 00:00:33]} 22. Nf3
{[%clk 00:21:11]} {[%emt 00:00:04]} Red8 {[%clk 00:12:56]} {[%emt 00:00:21]} 23.
Rxd7 {[%clk 00:21:18]} {[%emt 00:00:04]} Rxd7 {[%clk 00:12:23]} {[%emt
00:00:42]} 24. c4 {[%clk 00:21:17]} {[%emt 00:00:11]} Qd6 {[%clk 00:09:28]}
{[%emt 00:03:05]} 25. b4 {[%clk 00:18:40]} {[%emt 00:02:48]} Nh5 {[%clk
00:08:02]} {[%emt 00:01:35]} 26. Nc3 {[%clk 00:17:29]} {[%emt 00:01:21]} Qd3
{[%clk 00:06:44]} {[%emt 00:01:28]} 27. Qxd3 {[%clk 00:17:22]} {[%emt
00:00:17]} Rxd3 {[%clk 00:06:53]} {[%emt 00:00:02]} 28. Rc1 {[%clk 00:17:15]}
{[%emt 00:00:16]} Nd4 {[%clk 00:05:22]} {[%emt 00:01:41]} 29. Kf1 {[%clk
00:17:05]} {[%emt 00:00:20]} Nb3 {[%clk 00:03:51]} {[%emt 00:01:41]} 30. Rc2
{[%clk 00:17:06]} {[%emt 00:00:10]} Nd4 {[%clk 00:03:59]} {[%emt 00:00:01]} 31.
Rc1 {[%clk 00:14:10]} {[%emt 00:03:07]} Nb3 {[%clk 00:04:04]} {[%emt 00:00:04]}
32. Rc2 {[%clk 00:14:14]} {[%emt 00:00:07]} Nd4 {[%clk 00:03:57]} {[%emt
00:00:16]} 33. Rc1 {[%emt 00:00:09]} 1/2-1/2

[Event "Snabbschacks-SM 2025"]
[Site "Norrköping, Sweden"]
[Date "2025.09.28"]
[Round "6.7"]
[White "Fors, Klas"]
[Black "Rogoz, Vladyslav"]
[Result "0-1"]
[TimeControl "25 min + 10 sec/move"]
[WhiteElo "2063"]
[BlackElo "2108"]

1. c4 {[%clk 00:25:19]} {[%emt 00:00:01]} e6 {[%clk 00:25:16]} {[%emt
00:00:04]} 2. Nf3 {[%clk 00:25:22]} {[%emt 00:00:07]} b6 {[%clk 00:25:24]}
{[%emt 00:00:02]} 3. g3 {[%clk 00:25:26]} {[%emt 00:00:06]} Bb7 {[%clk
00:25:32]} {[%emt 00:00:01]} 4. Bg2 {[%clk 00:25:30]} {[%emt 00:00:06]} f5
{[%clk 00:25:40]} {[%emt 00:00:03]} 5. O-O {[%clk 00:25:26]} {[%emt 00:00:14]}
Nf6 {[%clk 00:25:49]} {[%emt 00:00:02]} 6. Nc3 {[%clk 00:25:23]} {[%emt
00:00:13]} Bb4 {[%clk 00:25:56]} {[%emt 00:00:02]} 7. Qc2 {[%clk 00:25:07]}
{[%emt 00:00:25]} O-O {[%clk 00:25:59]} {[%emt 00:00:07]} 8. a3 {[%clk
00:25:13]} {[%emt 00:00:05]} Bxc3 {[%clk 00:26:06]} {[%emt 00:00:03]} 9. Qxc3
{[%clk 00:25:17]} {[%emt 00:00:07]} Ne4 {[%clk 00:25:50]} {[%emt 00:00:25]} 10.
Qc2 {[%clk 00:25:21]} {[%emt 00:00:06]} Qe8 {[%clk 00:25:03]} {[%emt 00:00:57]}
11. d3 {[%clk 00:24:29]} {[%emt 00:01:01]} Nf6 {[%clk 00:25:11]} {[%emt
00:00:03]} 12. b4 {[%clk 00:23:38]} {[%emt 00:01:01]} a5 {[%clk 00:25:19]}
{[%emt 00:00:02]} 13. Bb2 {[%clk 00:23:40]} {[%emt 00:00:08]} d6 {[%clk
00:25:17]} {[%emt 00:00:12]} 14. Bc3 {[%clk 00:18:08]} {[%emt 00:05:42]} a4
{[%clk 00:24:26]} {[%emt 00:01:01]} 15. Rab1 {[%clk 00:17:45]} {[%emt
00:00:33]} e5 {[%clk 00:24:21]} {[%emt 00:00:15]} 16. b5 {[%clk 00:15:36]}
{[%emt 00:02:18]} Nbd7 {[%clk 00:24:28]} {[%emt 00:00:03]} 17. Rb4 {[%clk
00:15:45]} {[%emt 00:00:02]} Nc5 {[%clk 00:23:40]} {[%emt 00:00:58]} 18. Rbb1
{[%clk 00:14:53]} {[%emt 00:01:02]} Qh5 {[%clk 00:20:52]} {[%emt 00:02:58]} 19.
Bb4 {[%clk 00:14:48]} {[%emt 00:00:15]} Nb3 {[%clk 00:20:55]} {[%emt 00:00:07]}
20. Bc3 {[%clk 00:13:44]} {[%emt 00:01:14]} e4 {[%clk 00:19:13]} {[%emt
00:01:51]} 21. Nd4 {[%clk 00:13:40]} {[%emt 00:00:14]} Nc5 {[%clk 00:18:09]}
{[%emt 00:01:15]} 22. Bb4 {[%clk 00:13:36]} {[%emt 00:00:14]} f4 {[%clk
00:15:04]} {[%emt 00:03:15]} 23. dxe4 {[%clk 00:10:33]} {[%emt 00:03:13]} fxg3
{[%clk 00:14:55]} {[%emt 00:00:20]} 24. h3 {[%clk 00:05:54]} {[%emt 00:04:48]}
Bxe4 {[%clk 00:14:12]} {[%emt 00:00:53]} 25. Bxe4 {[%clk 00:04:54]} {[%emt
00:01:11]} Qxh3 {[%clk 00:12:26]} {[%emt 00:01:55]} 26. fxg3 {[%clk 00:02:10]}
{[%emt 00:02:54]} Nfxe4 {[%clk 00:12:09]} {[%emt 00:00:26]} 27. Rf3 {[%clk
00:00:17]} {[%emt 00:02:04]} Nxg3 {[%clk 00:11:55]} {[%emt 00:00:24]} 28. Qc3
{[%emt 00:00:17]} 0-1

[Event "Snabbschacks-SM 2025"]
[Site "Norrköping, Sweden"]
[Date "2025.09.28"]
[Round "8.3"]
[White "Grahn, Vidar"]
[Black "Ostling, Hakan"]
[Result "1-0"]
[TimeControl "25 min + 10 sec/move"]
[WhiteTitle "FM"]
[WhiteElo "2236"]
[BlackElo "2117"]

1. e4 {[%clk 00:25:18]} {[%emt 00:00:01]} g6 {[%clk 00:25:00]} {[%emt
00:00:21]} 2. d4 {[%clk 00:25:27]} {[%emt 00:00:01]} Bg7 {[%clk 00:25:08]}
{[%emt 00:00:02]} 3. c4 {[%clk 00:25:36]} d6 {[%clk 00:24:50]} {[%emt
00:00:28]} 4. Be2 {[%clk 00:25:44]} {[%emt 00:00:02]} Nf6 {[%clk 00:24:42]}
{[%emt 00:00:18]} 5. Nc3 {[%clk 00:25:52]} {[%emt 00:00:01]} O-O {[%clk
00:24:45]} {[%emt 00:00:07]} 6. Be3 {[%clk 00:26:01]} {[%emt 00:00:02]} e5
{[%clk 00:24:14]} {[%emt 00:00:40]} 7. d5 {[%clk 00:26:10]} {[%emt 00:00:02]}
Nbd7 {[%clk 00:21:48]} {[%emt 00:02:36]} 8. h4 {[%clk 00:26:18]} {[%emt
00:00:02]} h5 {[%clk 00:19:47]} {[%emt 00:02:10]} 9. f3 {[%clk 00:26:11]}
{[%emt 00:00:17]} Re8 {[%clk 00:19:20]} {[%emt 00:00:38]} 10. Nh3 {[%clk
00:26:13]} {[%emt 00:00:07]} Nf8 {[%clk 00:19:26]} {[%emt 00:00:04]} 11. Nf2
{[%clk 00:26:16]} {[%emt 00:00:06]} c6 {[%clk 00:19:19]} {[%emt 00:00:18]} 12.
Qd2 {[%clk 00:25:37]} {[%emt 00:00:49]} cxd5 {[%clk 00:18:51]} {[%emt
00:00:38]} 13. cxd5 {[%clk 00:25:45]} {[%emt 00:00:03]} Kh7 {[%clk 00:18:38]}
{[%emt 00:00:22]} 14. g4 {[%clk 00:25:46]} {[%emt 00:00:09]} a6 {[%clk
00:18:44]} {[%emt 00:00:05]} 15. a4 {[%clk 00:25:19]} {[%emt 00:00:37]} Qa5
{[%clk 00:17:28]} {[%emt 00:01:25]} 16. Rb1 {[%clk 00:24:06]} {[%emt 00:01:22]}
Qb4 {[%clk 00:15:52]} {[%emt 00:01:47]} 17. Nd3 {[%clk 00:24:10]} {[%emt
00:00:07]} Qa5 {[%clk 00:16:01]} 18. g5 {[%clk 00:23:52]} {[%emt 00:00:28]}
N6d7 {[%clk 00:15:49]} {[%emt 00:00:23]} 19. b4 {[%clk 00:23:56]} {[%emt
00:00:06]} Qd8 {[%clk 00:15:56]} {[%emt 00:00:02]} 20. Nb2 {[%clk 00:23:38]}
{[%emt 00:00:28]} f5 {[%clk 00:15:46]} {[%emt 00:00:20]} 21. Nc4 {[%clk
00:23:35]} {[%emt 00:00:13]} Qe7 {[%clk 00:15:29]} {[%emt 00:00:27]} 22. a5
{[%clk 00:22:31]} {[%emt 00:01:15]} Rb8 {[%clk 00:13:53]} {[%emt 00:01:45]} 23.
Ba7 {[%clk 00:20:10]} {[%emt 00:02:31]} Ra8 {[%clk 00:13:54]} {[%emt 00:00:10]}
24. Bf2 {[%clk 00:20:18]} {[%emt 00:00:01]} Rd8 {[%clk 00:13:44]} {[%emt
00:00:21]} 25. Qc2 {[%clk 00:19:13]} {[%emt 00:01:15]} f4 {[%clk 00:12:22]}
{[%emt 00:01:32]} 26. Kd2 {[%clk 00:19:15]} {[%emt 00:00:07]} Rb8 {[%clk
00:11:49]} {[%emt 00:00:43]} 27. Rhc1 {[%clk 00:19:18]} {[%emt 00:00:07]} b5
{[%clk 00:11:24]} {[%emt 00:00:35]} 28. axb6 {[%clk 00:19:07]} {[%emt
00:00:21]} Bb7 {[%clk 00:11:32]} {[%emt 00:00:02]} 29. Na5 {[%clk 00:19:02]}
{[%emt 00:00:15]} Ba8 {[%clk 00:10:10]} {[%emt 00:01:32]} 30. Nc6 {[%clk
00:19:00]} {[%emt 00:00:11]} Bxc6 {[%clk 00:09:58]} {[%emt 00:00:23]} 31. dxc6
{[%clk 00:19:09]} Nxb6 {[%clk 00:10:06]} {[%emt 00:00:02]} 32. Bxb6 {[%clk
00:19:14]} {[%emt 00:00:05]} Rxb6 {[%clk 00:10:15]} 33. Nd5 {[%clk 00:19:21]}
{[%emt 00:00:03]} Qa7 {[%clk 00:10:23]} {[%emt 00:00:02]} 34. Nxb6 {[%clk
00:18:05]} {[%emt 00:01:26]} Qxb6 {[%clk 00:10:31]} {[%emt 00:00:02]} 35. Qb3
{[%clk 00:17:39]} {[%emt 00:00:36]} Rc8 {[%clk 00:08:26]} {[%emt 00:02:15]} 36.
Ra1 {[%clk 00:16:41]} {[%emt 00:01:09]} Qd4+ {[%clk 00:04:49]} {[%emt
00:03:47]} 37. Qd3 {[%clk 00:15:08]} {[%emt 00:01:42]} Qxb4+ {[%clk 00:04:55]}
{[%emt 00:00:04]} 38. Qc3 {[%clk 00:15:16]} {[%emt 00:00:02]} Qxc3+ {[%clk
00:04:01]} {[%emt 00:01:04]} 39. Rxc3 {[%clk 00:15:24]} {[%emt 00:00:02]} Ne6
{[%clk 00:04:07]} {[%emt 00:00:04]} 40. Bxa6 {[%clk 00:15:27]} {[%emt
00:00:08]} Rc7 {[%clk 00:04:13]} {[%emt 00:00:04]} 41. Bb5 {[%clk 00:13:33]}
{[%emt 00:02:03]} Nd4 {[%clk 00:03:35]} {[%emt 00:00:48]} 42. Ba4 {[%clk
00:13:40]} {[%emt 00:00:03]} d5 {[%clk 00:03:24]} {[%emt 00:00:21]} 43. exd5
{[%clk 00:13:35]} {[%emt 00:00:15]} Bf8 {[%clk 00:03:12]} {[%emt 00:00:22]} 44.
Rb1 {[%clk 00:13:36]} {[%emt 00:00:07]} Bd6 {[%clk 00:03:05]} {[%emt 00:00:19]}
45. Rb7 {[%clk 00:13:39]} {[%emt 00:00:06]} Nf5 {[%clk 00:02:22]} {[%emt
00:00:54]} 46. Rxc7+ Bxc7 {[%clk 00:02:31]} 47. Rb3 {[%clk 00:13:38]} {[%emt
00:00:10]} Nd6 {[%clk 00:02:31]} {[%emt 00:00:10]} 48. Kd3 {[%clk 00:13:36]}
{[%emt 00:00:13]} Kg7 {[%clk 00:02:35]} {[%emt 00:00:05]} 49. Ra3 {[%clk
00:13:24]} {[%emt 00:00:23]} Kf7 {[%clk 00:02:30]} {[%emt 00:00:15]} 50. Bb3
{[%clk 00:13:30]} {[%emt 00:00:02]} Nb5 {[%clk 00:02:23]} {[%emt 00:00:19]} 51.
d6+ {[%clk 00:13:32]} {[%emt 00:00:07]} 1-0